[Event "FIDE WSCC 65 2022"]
[Site "Assisi"]
[Date "2022.11.26"]
[Round "11.14"]
[White "Maryasin, Boris"]
[Black "Gruzmann, Boris"]
[Result "1-0"]
[ECO "A45"]
[WhiteElo "2258"]
[BlackElo "2156"]
[Annotator "TA"]
[PlyCount "99"]
[EventDate "2022.11.14"]
[EventType "swiss"]
[EventCountry "ITA"]
[SourceTitle "playchess.com"]
[Source "ChessBase"]
[SourceQuality "1"]
[TimeControl "40/5400+30:1800+30"]

{[%evp 9,99,0,-6,8,25,3,15,0,0,-17,37,30,39,39,36,38,54,30,120,120,123,125,122,122,129,38,36,31,32,115,39,29,25,40,36,0,0,0,70,73,64,65,106,92,129,112,132,106,108,106,112,112,97,101,82,89,82,76,119,121,130,108,116,66,70,8,1840,1851,1866,1825,1650,1650,1825,322,1517,1499,29967,29968,29969,29970,29970,29971,29971,29972,29972,29973,29975,29976,29974,29976,29975,29976]} 1. d4 {[%emt 0:00:05]} Nf6 {[%emt 0:00:15]} 2. Nc3 {[%emt 0:00:11]} c5 {[%emt 0:01:52]} 3. dxc5 {[%emt 0:00:13]} e6 {[%emt 0:00:23]} 4. e4 {[%emt 0:00:16]} Nc6 {[%emt 0:04:07]} 5. Nf3 {[%emt 0:04:32]} Bxc5 {[%emt 0:01:54] White should prevent ...Ng4.} 6. Bd3 {[%emt 0:00:24] A45: Trompowsky Attack.} d5 {[%emt 0:01:23]} 7. exd5 {[%emt 0:01:38]} Nxd5 {[%emt 0:00:18]} 8. Ne4 {[%emt 0:00:16] The position is equal.} Be7 {[%emt 0:01:48]} 9. a3 {[%emt 0:00:36] [#]} Nf6 $146 {[%emt 0:05:12]} (9... O-O $11) ({Predecessor:} 9... Bd7 10. O-O O-O 11. c4 Nf6 12. Qc2 h6 13. Bf4 Nh5 14. Be3 f5 15. Nc3 e5 {0-1 (36) Sciupokas,A (1971)-Pluta,P (1708) Vilnius 2017}) 10. Qe2 {[%emt 0:00:47]} Nd4 {[%emt 0:02:01]} 11. Nxd4 {[%emt 0:00:34]} Qxd4 {[%emt 0:00:08]} 12. c3 {[%emt 0:02:11]} Qd8 {[%emt 0:02:55]} 13. Bf4 {[%emt 0:01:13] Bb5+ is the strong threat.} O-O {[%emt 0:04:21]} (13... Nd5 $11 {keeps the balance.} 14. Bd2 O-O) 14. Nxf6+ $16 {[%emt 0:05:35]} Bxf6 {[%emt 0:00:17]} 15. O-O-O $1 {[%emt 0:00:12][%cal Od3h7] Hoping for Bxh7+!} Qa5 {[%emt 0:01:35]} 16. h4 {[%emt 0:01:33]} Rd8 {[%emt 0:12:11]} 17. g4 {[%emt 0:06:22]} (17. Bc2 $16) 17... Bd7 $1 $14 {[%emt 0:07:48]} (17... e5 18. g5 Be7 19. Bxe5 $18 (19. Qxe5 Qxe5 20. Bxe5 Bg4 $16)) 18. Qe4 $40 {[%emt 0:04:33][%csl LRb7,LRh7][%mdl 128] White attacks.} Bc6 {[%emt 0:03:49]} 19. Qxh7+ {[%emt 0:00:38]} Kf8 {[%emt 0:00:10]} 20. Be4 {[%emt 0:01:24]} (20. Rhg1 {looks sharper.} Bf3 21. Bd2 Bxd1 22. g5) 20... Bxe4 {[%emt 0:16:21]} 21. Qxe4 {[%emt 0:00:26]} Bxc3 $1 {[%emt 0:00:18][%cal Oa8c8][%mdl 64]} 22. Bd6+ {[%emt 0:04:48]} (22. bxc3 $2 Qxc3+ 23. Kb1 Qb3+ 24. Ka1 Qxa3+ 25. Kb1 Rxd1+ 26. Rxd1 Qb3+ 27. Kc1 Rc8+ 28. Kd2 Rd8+ 29. Ke2 Qxd1+ $19) 22... Kg8 {[%emt 0:01:56][%cal Oa5b6]} 23. Qxb7 {[%emt 0:01:05]} (23. bxc3 $2 Qxc3+ 24. Qc2 (24. Kb1 $2 Qb3+ 25. Ka1 Rxd6 $19) 24... Qa1+ 25. Kd2 Qe5 $19) 23... Be5 {[%emt 0:06:31]} (23... Rac8 $1 $11 24. Kb1 (24. bxc3 Qxc3+ 25. Kb1 Rc6 $17) 24... Qa4) 24. Qb4 $1 {[%emt 0:09:17] Active counter play!} Qxb4 {[%emt 0:06:14]} 25. Bxb4 {[%emt 0:00:08]} Rac8+ {[%emt 0:00:42]} 26. Kb1 {[%emt 0:00:15]} Rxd1+ {[%emt 0:00:24]} 27. Rxd1 $16 {[%emt 0:00:08][%mdl 4096] Endgame KRB-KRB} Rc4 {[%emt 0:00:13]} 28. Rd8+ {[%emt 0:02:21]} Kh7 {[%emt 0:00:12]} 29. Rd7 {[%emt 0:00:06]} Rf4 {[%emt 0:01:18]} 30. Bc5 {[%emt 0:01:21]} ({Resist} 30. Rxa7 $6 Rxf2 31. b3 Kg6 $11) 30... a5 {[%emt 0:04:21]} 31. Be3 {[%emt 0:01:02] Inhibits a4.} Rxg4 {[%emt 0:00:18]} 32. Rxf7 {[%emt 0:00:08]} Rxh4 {[%emt 0:00:16]} 33. Re7 {[%emt 0:01:04]} Kg6 {[%emt 0:02:26]} 34. Rxe6+ {[%emt 0:00:09]} Kf5 {[%emt 0:00:09]} 35. Rb6 {[%emt 0:01:08]} a4 {[%emt 0:00:12] [#]} 36. Rb4 $1 {[%emt 0:00:42]} g5 {[%emt 0:00:38]} 37. Kc2 {[%emt 0:00:57]} ({White should try} 37. Rb5 $14) 37... Re4 $2 {[%emt 0:00:40][%mdl 8192] [#] Loses the game.} (37... Rxb4 $11 38. axb4 g4) 38. Rxe4 $1 $18 {[%emt 0:00:27]} Kxe4 {[%emt 0:00:41]} 39. Bxg5 {[%emt 0:00:05] KB-KB} Bd4 {[%emt 0:00:48]} 40. Be3 $1 {[%emt 0:01:40] Bxd4 would kill now.} Bf6 {[%emt 0:01:08]} 41. Bd2 $2 {[%emt 0:33:59]} (41. b3 axb3+ 42. Kxb3) 41... Bd4 $2 {[%emt 0:32:52]} (41... Be5 42. b3 axb3+ 43. Kxb3 Kd5) 42. f4 {[%emt 0:00:30]} Bg7 {[%emt 0:01:55]} 43. Bc3 {[%emt 0:00:24] White mates.} Bf8 {[%emt 0:05:55]} 44. Be5 {[%emt 0:00:18]} Bc5 {[%emt 0:00:50]} 45. Kc3 {[%emt 0:00:49]} Kd5 {[%emt 0:00:30]} 46. Kd3 {[%emt 0:00:12]} Bb6 {[%emt 0:00:00]} 47. Bc3 {[%emt 0:00:00]} Bc7 {[%emt 0:00:00]} 48. f5 {[%emt 0:00:00][%cal Bf4f5,Bf5f6][%mdl 32]} Bf4 {[%emt 0:00:00]} 49. f6 {[%emt 0:00:00]} Bh6 {[%emt 0:00:00]} 50. Bd2 {[%emt 0:00:00] Weighted Error Value: White=0.32/Black=0.32} 1-0

[Event "FIDE WSCC 65 2022"]
[Site "Assisi"]
[Date "2022.11.26"]
[Round "11.15"]
[White "Luciani, Carlo"]
[Black "Buchal, Stephan"]
[Result "0-1"]
[ECO "B06"]
[WhiteElo "2187"]
[BlackElo "2247"]
[Annotator "TA"]
[PlyCount "80"]
[EventDate "2022.11.14"]
[EventType "swiss"]
[EventCountry "ITA"]
[SourceTitle "playchess.com"]
[Source "ChessBase"]
[SourceQuality "1"]
[TimeControl "40/5400+30:1800+30"]

{[%evp 12,80,51,26,82,37,66,54,53,59,60,37,81,29,83,83,105,91,133,77,55,73,66,53,68,-34,15,-89,-83,-87,-85,-87,-90,-85,-71,-155,-59,-149,-71,-132,-145,-199,-189,-256,-232,-312,-312,-408,-114,-516,-537,-530,-199,-192,-34,-463,-437,-1850,-1816,-29970,-29971,-29979,-29979,-29990,-29991,-29991,-29987,-29985,-5369,-29984,-4661]} 1. e4 {[%emt 0:00:01]} g6 {[%emt 0:00:17]} 2. d4 {[%emt 0:01:09]} Bg7 {[%emt 0:00:08]} 3. Nc3 {[%emt 0:00:16]} d6 {[%emt 0:00:17]} 4. Be3 {[%emt 0:00:13]} a6 {[%emt 0:00:15]} 5. Qd2 {[%emt 0:00:29]} b5 {[%emt 0:00:17]} 6. f3 {[%emt 0:00:50]} Nd7 {[%emt 0:00:26]} 7. h4 {[%emt 0:00:46][%cal Bh2h4,Bh4h5][%mdl 32]} h6 {[%emt 0:00:36] 7...Ngf6 is setting a new trend. B06: Modern Defence.} (7... h5 $11) 8. Nge2 {[%emt 0:14:17]} Bb7 {[%emt 0:01:56]} 9. h5 {[%emt 0:07:45]} g5 {[%emt 0:00:31] White is slightly better.} 10. d5 {[%emt 0:04:15]} e6 {[%emt 0:14:24]} 11. O-O-O {[%emt 0:09:16]} Ngf6 {[%emt 0:15:38] [#]} 12. a3 $146 {[%emt 0:05:53]} (12. Nd4 $16) ({Predecessor:} 12. Nd4 Qe7 13. g3 Nb6 14. a3 Nfd7 15. Bh3 Nf8 16. f4 gxf4 17. gxf4 Nc4 18. Qe1 {0-1 (45) Valenzuela Gomez,F (2393)-Valderrama Quiceno,E (2490) Sabadell 2019}) 12... Qe7 {[%emt 0:04:11]} (12... O-O $1 $11 {keeps the balance.}) 13. Nd4 {[%emt 0:04:53]} Ne5 {[%emt 0:01:12]} 14. Be2 {[%emt 0:02:37]} Rd8 {[%emt 0:14:49]} 15. g3 {[%emt 0:12:40]} (15. f4 $142) 15... c5 {[%emt 0:01:24]} 16. dxc6 {[%emt 0:01:43]} Nxc6 {[%emt 0:00:14]} 17. Nxc6 {[%emt 0:04:24]} Bxc6 {[%emt 0:00:04]} 18. Bd3 {[%emt 0:02:53]} (18. Bb6 $14) 18... d5 {[%emt 0:04:07]} (18... Qb7 $1 $15 {might be stronger.}) 19. Qf2 {[%emt 0:03:08]} (19. Bb6 $11) 19... d4 $1 $36 {[%emt 0:03:56][%mdl 2048] Black is on the roll.} 20. Bxd4 {[%emt 0:00:27] [#] And now e5 would win.} Ng4 {[%mdl 64]} 21. fxg4 {[%emt 0:00:52]} Bxd4 {[%emt 0:00:19]} 22. Qe1 {[%emt 0:02:29]} O-O {[%emt 0:09:28][%mdl 1024] White must now prevent ...b4. Black has strong compensation.} 23. Rf1 {[%emt 0:02:15]} (23. Na2 $142) 23... Be5 {[%emt 0:00:52]} (23... b4 $17 24. Ne2 (24. axb4 $2 Qxb4 25. Bxa6 Ra8 $19) 24... bxa3 25. Nxd4 axb2+ 26. Kxb2 Rxd4) 24. Ne2 {[%emt 0:03:17]} (24. Na2 $1 $15) 24... Rb8 {[%emt 0:06:59] Black is much more active.} (24... Qc7 $142 $1 25. Kb1 a5) 25. Qb4 {[%emt 0:01:17]} ({Better is} 25. Qa5) 25... Qa7 $1 {[%emt 0:03:34]} 26. Rf3 {[%emt 0:01:41] [#]} (26. Qa5 $17 {was called for.}) 26... a5 $1 $19 {[%emt 0:00:40]} 27. Qd2 {[%emt 0:03:01]} (27. Qb3 {was necessary.}) 27... b4 {[%emt 0:02:18]} 28. Qe3 {[%emt 0:01:39]} Qe7 {[%emt 0:01:48] Hoping for ...Ba4.} 29. Nd4 {[%emt 0:01:01]} Rfc8 {[%emt 0:04:59]} (29... Ba4 $19 {is more deadly.} 30. Be2 Rfd8 31. axb4 Qxb4) 30. Bc4 $2 {[%emt 0:01:35][%mdl 8192]} (30. Nxc6 $17 {was the crucial defense.} Rxc6 31. a4) 30... Ba4 {[%emt 0:06:35] This pair of bishops is nice.} 31. Bb3 {[%emt 0:01:54]} bxa3 $2 {[%emt 0:00:31]} (31... Bxb3 32. Qxb3 Qa7) 32. Bxa4 {[%emt 0:01:00]} Rc4 $2 {[%emt 0:03:04]} ({And not} 32... Rxb2 33. Qxa3 Qxa3 34. Rxa3 $11) ({Black should play} 32... axb2+ $19 33. Kb1 Rd8) 33. Bb3 $2 {[%emt 0:01:36][%mdl 8192]} (33. Qxa3 $15 Qxa3 34. Rxa3 Bxd4 35. Bb3) 33... axb2+ {[%emt 0:00:22]} 34. Kxb2 {[%emt 0:01:01]} (34. Kb1 $142 Rxd4 35. Qe2 (35. Rxd4 {leads to mate.} Qa3)) 34... a4 {[%emt 0:00:11][%mdl 64] Pin} 35. Qf2 {[%emt 0:01:39]} axb3 {[%emt 0:00:18]} 36. c3 {[%emt 0:01:09]} Ra4 {[%emt 0:00:31]} 37. Ra1 {[%emt 0:00:33]} Rxa1 {[%emt 0:00:44]} 38. Kxa1 {[%emt 0:00:10]} Bxd4 {[%emt 0:00:51]} 39. cxd4 {[%emt 0:00:12]} b2+ {[%emt 0:00:36]} (39... Ra8+ $142 40. Kb1 Qb4 41. e5 Ra2 42. Qxa2 Qe1+ 43. Kb2 bxa2 44. Ra3 Qb1+ 45. Kc3 Qc1+ 46. Kb4 {[#]} Qxa3+ $3 {[%mdl 512]} 47. Kxa3 a1=Q+ 48. Kb4 Qxd4+ 49. Kb3 Qxg4 50. Kc2 Qxg3 51. Kd2 g4 52. Kc2 Qa3 53. Kd2 Qb3 54. Ke1 Qa2 55. Kf1 g3 56. Ke1 g2 57. Kd1 g1=Q#) 40. Kb1 {[%emt 0:00:01]} Qa7 {[%emt 0:00:09] Weighted Error Value: White=1.08/Black=0.51} (40... Qb4 $142 41. Rd3 Qc4 42. Rd1 Qa4 43. Rg1 Qa1+ 44. Kc2 b1=Q+ 45. Rxb1 Qxb1+ 46. Kd2 Qa2+ 47. Kc3 Qxf2 48. d5 e5 49. d6 Rb2 50. d7 Qd4#) 0-1